bitfinex/quotes_ETHUSD_20250130
["timestamp","ask_amount","ask_price","bid_price","bid_amount"]
[1738248123390,3.90111,3251.8,3251.2,3.90082]
[1738248123391,4.51317107,3251.8,3251.2,3.90082]
[1738248123572,0.61201107,3251.8,3251.3,0.55]
[1738248123764,3.07505,3252.0,3251.3,4.06744589]
[1738248123963,3.07548,3251.6,3251.3,0.58649417]
[1738248124360,3.07559,3251.4,3251.3,0.03649417]
[1738248124565,3.07525,3251.8,3251.3,0.03649417]
[1738248124800,3.07532,3251.7,3251.1,3.62583]
[1738248124974,3.07532,3251.7,3251.4,0.32370555]
[1738248125185,3.0755,3251.5,3251.4,0.28757874]
[1738248125779,3.07532,3251.7,3251.4,0.28757874]
[1738248126386,4.12582,3252.2,3251.5,0.55]
[1738248126564,3.07523,3251.8,3251.5,0.55]
[1738248127280,3.07504,3252.0,3251.6,0.784]
[1738248128076,3.07513,3251.9,3251.6,0.784]
[1738248128278,3.075,3252.1,3251.6,0.784]
[1738248128480,3.07504,3252.0,3251.7,0.55]
[1738248129312,3.07467,3252.4,3251.9,0.55]
[1738248129914,3.68053008,3252.6,3251.9,0.55]
[1738248130081,3.07472,3252.4,3251.9,0.55]
[1738248131334,0.8308,3252.9,3251.9,0.55]
[1738248131630,3.07471,3252.4,3251.9,0.55]
[1738248131839,3.07495,3252.1,3251.6,0.784]
[1738248131990,3.0753,3251.8,3251.6,0.784]
[1738248132189,3.07521,3251.9,3251.3,0.7742]
[1738248132499,3.07522,3251.8,3251.4,0.55]
[1738248132853,3.07542,3251.6,3251.3,0.7742]
[1738248133052,3.85433,3252.2,3251.3,0.7742]
[1738248133358,3.07545,3251.6,3251.3,0.7742]
[1738248133855,3.07541,3251.6,3251.3,0.7742]
[1738248134232,0.61859095,3252.4,3251.0,0.55]
[1738248134233,0.7542,3253.0,3251.5,0.7912]
[1738248134439,3.82796,3253.4,3252.4,0.7912]
[1738248134756,0.8087,3253.7,3252.9,3.07413]
[1738248134919,3.461805,3253.6,3253.0,0.55]
[1738248135130,0.388205,3253.6,3253.2,0.55]
[1738248135345,3.08332273,3254.3,3253.5,3.48095172]
[1738248135552,0.01040273,3254.3,3253.9,0.8056]
[1738248135733,3.07324,3253.9,3253.3,3.87938]
[1738248136153,3.07304,3254.1,3253.4,0.55]
[1738248136363,0.01040273,3254.3,3253.9,0.55]
[1738248136667,0.318719,3254.3,3253.5,3.48095172]
[1738248136865,3.07324,3253.9,3253.4,0.55]
[1738248137227,0.01040273,3254.3,3253.7,0.55]
[1738248137414,0.01040273,3254.3,3254.0,0.55]
[1738248137815,3.08328273,3254.3,3254.1,0.03134061]
[1738248138265,3.08326273,3254.3,3253.6,0.55]
[1738248138434,3.08326273,3254.3,3254.2,0.0312958]
[1738248138634,3.08326273,3254.3,3253.6,3.62347]
[1738248138850,3.08326273,3254.3,3254.2,0.0312958]
[1738248139171,3.08326273,3254.3,3253.6,3.62347]
[1738248139172,3.07295,3254.2,3253.6,0.55]
[1738248139315,3.07295,3254.2,3253.5,3.48095172]
[1738248139316,0.61559427,3254.3,3254.2,0.0312958]
[1738248139521,3.07349,3253.7,3253.3,0.8056]
[1738248139711,3.07352,3253.6,3253.4,0.55]
[1738248140077,0.0075,3254.0,3252.7,4.28085172]
[1738248140364,0.0075,3254.1,3252.7,0.7999]
[1738248140365,3.0741,3253.0,3252.7,0.7999]
[1738248140513,3.07427,3252.8,3252.7,0.7999]
[1738248140715,0.614837,3252.8,3251.9,3.48095172]
[1738248140959,0.0075,3253.3,3251.9,3.48095172]
[1738248140960,3.07473,3252.4,3251.9,3.48095172]
[1738248141466,3.07478,3252.3,3251.9,3.48095172]
[1738248141819,3.07551,3251.5,3251.3,0.7999]
[1738248142018,3.07529,3251.8,3251.3,0.7999]
[1738248142528,3.07532,3251.7,3251.3,0.7999]
[1738248142728,3.0755,3251.5,3251.3,0.7999]
[1738248142930,3.07541,3251.6,3251.3,0.7999]
[1738248143135,3.07614,3250.9,3250.2,3.470117]
[1738248143336,3.07614,3250.9,3250.0,0.7999]
[1738248143561,3.07637,3250.6,3250.0,0.7999]
[1738248144236,3.07607,3250.9,3250.2,3.07666]
[1738248144440,3.07603,3251.0,3250.4,0.55]
[1738248144671,3.615501,3251.6,3250.4,0.55]
[1738248144672,3.07631,3250.7,3250.4,0.55]
[1738248144821,3.07652,3250.5,3250.0,0.7999]
[1738248145027,3.0767,3250.3,3250.0,0.7999]
[1738248145422,0.0075,3250.8,3249.5,0.8111]
[1738248145623,3.07728,3249.7,3249.1,1.426665]
[1738248146062,3.07673,3250.2,3249.1,0.8111]
[1738248146326,3.0774,3249.5,3249.1,0.8111]
[1738248146477,3.0774,3249.5,3249.2,0.55]
[1738248146838,3.07748,3249.5,3249.1,0.8111]
[1738248147752,3.07748,3249.5,3249.2,0.55]
[1738248148062,3.07722,3249.7,3249.2,0.55]
[1738248148263,3.07734,3249.6,3249.2,0.55]
[1738248148473,0.615456,3249.5,3248.6,0.8055]
[1738248148666,3.07763,3249.3,3248.6,0.8055]
[1738248148865,3.0777,3249.2,3248.6,0.8055]
[1738248149067,3.0777,3249.2,3248.7,0.55]
[1738248149585,3.07747,3249.5,3248.7,0.55]
[1738248149751,3.07722,3249.7,3248.8,3.07803]
[1738248149955,3.07749,3249.4,3248.7,0.55]
[1738248150168,3.0774,3249.5,3248.8,3.521392]
[1738248150885,3.0777,3249.2,3248.6,0.8055]
[1738248151057,0.0075,3249.7,3248.2,3.87272]
[1738248151258,0.015,3249.7,3248.2,3.87272]
[1738248151471,3.07787,3249.0,3248.4,0.55]
[1738248151801,3.07815,3248.7,3248.4,0.55]
[1738248152104,3.07801,3248.9,3248.3,0.55]
[1738248152304,3.07779,3249.1,3248.3,0.55]
[1738248152605,3.07787,3249.0,3248.3,3.62851]
[1738248152895,3.07802,3248.9,3248.3,1.01145959]
[1738248153456,3.07813,3248.8,3248.3,0.55]
[1738248154278,3.07813,3248.8,3248.4,0.04113857]
[1738248155053,0.0075,3249.4,3248.4,0.04113857]
[1738248155254,0.015,3249.4,3248.4,0.04113857]
[1738248155455,0.7765,3248.8,3248.1,0.1919859]
[1738248155677,0.7765,3248.8,3247.2,0.8019]
[1738248155678,3.07907,3247.8,3247.2,0.8019]
[1738248155882,3.07926,3247.6,3247.3,0.04136371]
[1738248156079,3.07926,3247.6,3247.2,0.8019]
[1738248156301,3.0793,3247.5,3247.3,0.04136371]
[1738248156498,3.07898,3247.9,3247.2,0.8019]
[1738248156656,3.07919,3247.6,3247.3,0.59136371]
[1738248156851,3.07919,3247.6,3247.3,0.04136371]
[1738248157056,3.07901,3247.8,3247.1,0.005]
[1738248157403,3.07948,3247.3,3247.2,0.04143121]
[1738248157922,0.386981,3247.8,3247.1,0.005]
[1738248158099,3.07957,3247.2,3247.1,0.005]
[1738248159009,6.09467,3247.1,3247.0,0.1671596]
[1738248159329,3.07967,3247.1,3247.0,0.1671596]
[1738248159534,3.774284,3247.1,3247.0,0.1671596]
[1738248159879,3.781784,3247.1,3247.0,0.1671596]
[1738248160095,3.789284,3247.1,3247.0,0.1671596]
[1738248160506,3.789284,3247.1,3247.0,9.6e-06]
[1738248160507,6.789284,3247.1,3247.0,9.6e-06]
[1738248162608,3.07967,3247.1,3247.0,9.6e-06]
[1738248163429,3.07948,3247.3,3247.0,9.6e-06]
[1738248163631,3.07948,3247.3,3247.0,0.03030293]
[1738248163938,3.07957,3247.2,3247.1,0.03031289]
[1738248164533,3.07957,3247.2,3247.0,9.6e-06]
[1738248164534,3.07967,3247.1,3247.0,9.6e-06]
[1738248165114,3.07967,3247.1,3247.0,0.03037071]
[1738248167183,3.07967,3247.1,3247.0,9.6e-06]
[1738248168040,0.615911,3247.2,3247.0,9.6e-06]
[1738248168184,3.07967,3247.1,3247.0,9.6e-06]
[1738248169231,3.07958,3247.2,3247.0,9.6e-06]
[1738248169433,3.07954,3247.3,3247.0,9.6e-06]
[1738248169434,3.07967,3247.1,3247.0,9.6e-06]
[1738248170236,3.0793,3247.5,3247.0,9.6e-06]
[1738248171625,3.07815,3248.7,3247.5,0.55]
[1738248171917,3.0785,3248.4,3247.7,3.62904]
[1738248172241,3.07843,3248.5,3247.7,3.62904]
[1738248172441,0.62291927,3248.7,3247.6,1.140531]
[1738248172726,0.62291927,3248.7,3247.6,4.219711]
[1738248172727,3.0786,3248.3,3247.6,4.219711]
[1738248173024,3.07888,3248.0,3247.7,0.55]
[1738248173403,3.07872,3248.1,3247.6,0.7776]
[1738248173598,3.07864,3248.2,3247.6,0.7776]
[1738248173844,3.07872,3248.1,3247.6,0.7776]
[1738248174387,3.07909,3247.8,3247.6,0.7776]
[1738248174646,3.07926,3247.6,3247.3,0.7618]
[1738248175095,3.07929,3247.5,3247.3,0.7618]
[1738248175294,3.07926,3247.6,3247.3,0.7618]
[1738248175516,3.07929,3247.5,3247.3,0.7618]
[1738248175714,3.88856,3248.1,3247.0,9.6e-06]
[1738248175715,0.0075,3248.0,3247.0,0.5500096]
[1738248176028,3.07936,3247.5,3247.0,0.5500096]
[1738248176228,3.07945,3247.4,3247.0,0.5500096]
[1738248176773,3.07936,3247.5,3247.0,0.5500096]
[1738248177068,3.07873,3248.1,3247.5,0.55]
[1738248177420,3.07853,3248.3,3247.7,3.62908]
[1738248178155,3.07853,3248.3,3247.7,0.55]
[1738248178361,3.07868,3248.2,3247.6,0.7591]
[1738248178658,3.07846,3248.4,3247.9,0.55]
[1738248178825,3.07846,3248.4,3247.9,3.62889]
[1738248179403,3.70066029,3248.6,3247.9,3.62889]
[1738248179608,3.0784,3248.5,3248.0,0.28664708]
[1738248179836,3.07845,3248.4,3248.0,0.28664708]
[1738248180170,3.07859,3248.3,3248.0,0.28664708]
[1738248180642,3.07864,3248.2,3248.0,0.28664708]
[1738248180838,3.07859,3248.3,3248.0,0.28664708]
[1738248181041,3.07838,3248.5,3247.9,3.07889]
[1738248181241,3.07831,3248.6,3248.0,0.55]
[1738248181443,3.07831,3248.6,3247.8,0.55]
[1738248181769,3.7966,3249.2,3248.3,0.7546]
[1738248181770,3.07809,3248.8,3248.3,0.7546]
[1738248181981,3.07768,3249.2,3248.6,0.55]
[1738248182122,3.69712648,3249.4,3248.7,3.07808]
[1738248182327,3.69712648,3249.4,3248.7,3.36472708]
[1738248182544,3.07795,3249.0,3248.7,0.28664708]
[1738248182974,3.07769,3249.2,3248.7,0.28664708]
[1738248183482,3.07787,3249.0,3248.7,0.28664708]
[1738248183780,3.07805,3248.8,3248.7,0.28664708]
[1738248183943,3.07787,3249.0,3248.7,0.28664708]
[1738248184131,3.07787,3249.0,3248.3,3.83313]
[1738248184479,3.07787,3249.0,3248.4,3.62843]
[1738248184641,3.07771,3249.2,3248.6,0.55]
[1738248184827,3.07771,3249.2,3248.6,3.62824]
[1738248185177,3.07752,3249.4,3248.6,0.55]
[1738248185343,3.07714,3249.8,3249.0,0.55]
[1738248185547,3.07738,3249.6,3249.0,3.62781]
[1738248185875,3.07723,3249.7,3249.1,3.07775]
[1738248186082,3.07737,3249.6,3249.0,3.91443214]
[1738248186226,3.07737,3249.6,3249.0,0.28662214]
[1738248186227,3.07749,3249.4,3249.0,0.28662214]
[1738248186428,3.07777,3249.1,3249.0,0.28662214]
[1738248186768,3.07767,3249.3,3249.0,0.28662214]
[1738248187074,3.07689,3250.1,3249.5,3.07733]
[1738248187276,3.07689,3250.1,3249.2,1.3417]
[1738248187277,3.07663,3250.3,3249.6,0.55]
[1738248187575,3.07663,3250.3,3249.5,0.55]
[1738248187866,3.07648,3250.5,3249.5,0.362747]
[1738248188167,3.07683,3250.1,3249.7,0.55]
[1738248188928,0.61928223,3250.4,3249.7,0.55]
[1738248189130,3.07632,3250.7,3250.0,3.62684]
[1738248189426,3.07636,3250.6,3250.0,3.62684]
[1738248189966,3.07647,3250.5,3250.0,0.55]
[1738248190335,3.07647,3250.5,3249.8,3.07709]
[1738248190846,3.07647,3250.5,3249.9,0.55]
[1738248191381,3.07637,3250.6,3249.9,3.62698]
[1738248191814,3.27481,3252.3,3250.3,0.7707]
[1738248192013,3.27481,3252.3,3250.4,0.58076338]
[1738248192014,3.07579,3251.2,3250.4,0.58076338]
[1738248192216,3.07623,3250.8,3250.4,0.55]
[1738248192714,3.07598,3251.0,3250.4,0.55]
[1738248192715,3.07581,3251.2,3250.6,0.55]
[1738248193008,3.07596,3251.1,3250.6,0.55]
[1738248193216,3.07601,3251.0,3250.4,3.62654]
[1738248193965,0.62625683,3251.3,3250.7,0.55]
[1738248194368,0.62625683,3251.3,3250.5,0.55]
[1738248194691,3.07608,3250.9,3250.5,0.55]
[1738248194898,3.07594,3251.1,3250.5,0.55]
[1738248195267,3.07607,3250.9,3250.5,0.55]
[1738248195469,3.07594,3251.1,3250.5,0.55]
[1738248195717,3.07594,3251.1,3250.5,3.62637]
[1738248195880,3.07594,3251.1,3250.5,0.55]
[1738248196219,3.07604,3251.0,3250.3,3.84731]
[1738248196373,3.0761,3250.9,3250.3,3.84731]
[1738248196562,3.0761,3250.9,3250.4,0.55]
[1738248197475,3.691305,3250.9,3250.3,0.7707]
[1738248197677,0.62625683,3251.3,3250.4,0.55]
[1738248197909,3.07581,3251.2,3250.7,0.55]
[1738248198121,0.62625683,3251.3,3250.8,3.07609]
[1738248198413,0.62625683,3251.3,3250.9,0.7946]
[1738248199519,3.70195683,3251.3,3250.9,0.7946]
[1738248199700,3.07547,3251.6,3251.0,0.55]
[1738248200217,3.07551,3251.5,3251.0,0.55]
[1738248200516,3.07615,3250.9,3250.2,3.07666]
[1738248200730,0.0075,3251.5,3250.1,0.7746]
[1738248200731,3.07627,3250.7,3250.1,0.7746]
[1738248201021,3.07654,3250.5,3250.1,0.7746]
[1738248201172,3.07627,3250.7,3250.2,0.55]
[1738248201605,3.07658,3250.4,3250.1,0.7746]
[1738248201917,3.07673,3250.2,3249.6,3.89016]
[1738248202118,3.07657,3250.4,3249.8,3.07703]
[1738248202329,3.07657,3250.4,3249.9,0.55]
[1738248202689,3.07673,3250.2,3249.6,3.89019]
[1738248202908,3.07702,3249.9,3249.6,0.8129]
[1738248203228,3.07683,3250.1,3249.6,0.8129]
[1738248204142,3.07683,3250.1,3249.7,0.55]
[1738248204691,3.07697,3250.0,3249.6,0.8129]
[1738248204924,3.07716,3249.8,3249.2,3.90414]
[1738248205141,3.07716,3249.8,3249.2,0.8265]
[1738248205303,3.07692,3250.0,3249.3,0.55]
[1738248205508,0.7944,3250.7,3249.3,0.55]
[1738248205829,3.07603,3251.0,3250.2,1.3044]
[1738248206034,3.07607,3250.9,3250.4,0.55]
[1738248206824,3.07607,3250.9,3250.3,3.07655]
[1738248206825,3.07593,3251.1,3250.6,0.55]
[1738248207141,3.07593,3251.1,3250.4,3.62647]
[1738248207295,3.07593,3251.1,3250.6,0.55]
[1738248207898,1.655272,3251.6,3250.6,0.55]
[1738248207899,3.07549,3251.6,3251.0,3.07595]
[1738248208134,3.07549,3251.6,3251.2,0.777]
[1738248208446,3.07549,3251.6,3251.0,0.55]
[1738248208447,3.07565,3251.4,3251.0,0.55]
[1738248208652,3.07549,3251.6,3251.0,0.55]
[1738248208951,3.07568,3251.4,3251.0,0.55]
[1738248209152,3.07576,3251.3,3250.9,0.7949]
[1738248209331,3.07595,3251.1,3250.6,0.7949]
[1738248209515,3.0829,3251.6,3250.6,0.7949]
[1738248209723,3.0762,3250.8,3250.6,0.7949]
[1738248210299,3.07597,3251.0,3250.6,0.7949]
[1738248210821,6.15203,3251.0,3250.6,0.7949]
[1738248211250,3.07597,3251.0,3250.6,0.7949]
[1738248211568,3.07617,3250.8,3250.6,0.7949]
[1738248211716,0.0075,3251.1,3250.3,0.8078]
[1738248211914,3.07612,3250.9,3250.3,0.8078]
[1738248212135,3.07612,3250.9,3250.4,0.55]
[1738248212452,3.07612,3250.9,3250.4,0.83664795]
[1738248212607,3.07586,3251.2,3250.6,0.55]
[1738248212608,3.07583,3251.2,3250.6,0.55]
[1738248212810,3.07617,3250.8,3250.4,0.28664795]
[1738248213234,3.07617,3250.8,3250.5,0.55]
[1738248213750,0.60368642,3251.2,3250.4,0.28664795]
[1738248213899,3.07579,3251.2,3250.7,0.55]
[1738248214121,3.07579,3251.2,3250.7,3.62624]
[1738248214324,3.07588,3251.1,3250.6,0.55]
[1738248214623,3.07598,3251.0,3250.6,0.55]
[1738248214863,3.07588,3251.1,3250.6,0.55]
[1738248215169,3.0758,3251.2,3250.6,3.62632]
[1738248215755,3.07593,3251.1,3250.6,0.55]
[1738248215964,3.07569,3251.3,3250.7,0.28729406]
[1738248216127,3.07588,3251.1,3250.7,0.28729406]
[1738248216322,3.07616,3250.8,3250.7,0.28729406]
[1738248217174,3.85796,3250.8,3250.7,0.28729406]
[1738248217951,3.07663,3250.3,3250.2,0.28729406]
[1738248219051,0.53091575,3252.1,3250.3,0.7946]
[1738248219374,3.07474,3252.3,3251.0,0.7946]
[1738248219579,3.07527,3251.8,3251.0,0.7946]
[1738248219779,3.07493,3252.2,3251.5,0.55]
[1738248219989,0.8125,3252.5,3251.5,0.55]
[1738248220139,0.61500568,3252.4,3252.1,1.3543]
[1738248220541,3.07408,3253.0,3252.3,0.55]
[1738248220786,3.07408,3253.0,3252.4,3.07464]
[1738248220991,3.07408,3253.0,3252.5,0.55]
[1738248221139,3.7048418,3253.2,3252.5,0.55]
[1738248221965,3.07421,3252.9,3252.4,0.55]
[1738248222288,3.74074667,3253.1,3252.4,4.294565]
[1738248222483,3.07414,3253.0,3252.4,4.294565]
[1738248223467,0.66666667,3253.1,3252.6,0.55]
[1738248223871,0.66666667,3253.1,3253.0,3.07408]
[1738248224078,0.66666667,3253.1,3253.0,7.37958]
[1738248224257,0.66666667,3253.1,3253.0,8.77800472]
[1738248225497,0.66666667,3253.1,3253.0,9.52320861]
[1738248225909,3.07274,3254.5,3253.8,3.07327]
[1738248226052,3.85349,3254.7,3253.8,3.07327]
[1738248226053,3.07249,3254.7,3254.0,0.7567]
[1738248226259,3.07277,3254.4,3254.0,0.7567]
[1738248226574,3.07259,3254.6,3254.0,0.7567]
[1738248226784,3.07284,3254.4,3254.0,0.7567]
[1738248227687,0.61743899,3254.6,3254.0,0.7567]
[1738248227863,3.07292,3254.3,3254.0,0.7567]
[1738248228062,3.07266,3254.5,3254.1,0.55]
[1738248228490,0.61743899,3254.6,3254.0,0.7567]
[1738248228687,3.07276,3254.4,3254.0,0.7567]
[1738248228865,3.07289,3254.3,3254.0,0.7567]
[1738248229210,0.7902,3255.4,3254.4,0.55]
[1738248229355,3.07192,3255.3,3254.6,4.04973939]
[1738248229716,0.60202643,3255.6,3254.8,0.55]
[1738248229860,3.67368643,3255.6,3254.8,0.55]
[1738248230064,3.07172,3255.5,3254.8,0.55]
[1738248230305,3.07192,3255.3,3254.8,0.55]
[1738248231011,3.07202,3255.2,3254.8,0.55]
[1738248231160,3.0721,3255.1,3254.8,0.55]
[1738248231491,3.07191,3255.3,3254.8,0.55]
[1738248231871,3.07206,3255.2,3254.8,0.55]
[1738248232125,3.07172,3255.5,3254.8,0.55]
[1738248232302,3.07125,3256.0,3255.2,0.55]
[1738248232610,3.07134,3256.0,3255.2,3.072]
[1738248232776,3.07136,3255.9,3255.2,3.072]
[1738248233204,3.07145,3255.8,3255.1,0.55]
[1738248233401,3.07145,3255.8,3255.1,3.6221]
[1738248233598,3.07116,3256.1,3255.2,3.07193]
[1738248233599,3.0713,3256.0,3255.2,3.07193]
[1738248234242,3.0706,3256.7,3255.6,3.07155]
[1738248234535,0.78092658,3256.9,3256.0,0.55]
[1738248234691,3.07096,3256.4,3256.0,0.55]
[1738248235225,0.16715,3256.9,3255.9,0.8159]
[1738248235226,3.07125,3256.0,3255.9,0.8159]
[1738248235589,3.07125,3256.0,3255.9,1.3659]
[1738248235926,3.0709,3256.4,3256.0,0.55]
[1738248236134,3.07069,3256.6,3256.0,0.55]
[1738248236311,3.07079,3256.5,3256.0,0.55]
[1738248236817,3.07106,3256.3,3256.0,0.55]
[1738248237324,0.614185,3256.3,3255.9,0.8159]
[1738248237538,3.07125,3256.0,3255.9,0.8159]
[1738248237694,3.07125,3256.0,3255.6,1.3106]
[1738248238031,3.07108,3256.2,3255.6,1.3106]
[1738248238032,3.07121,3256.1,3255.6,1.3106]
[1738248238334,3.07153,3255.7,3255.6,0.7606]
[1738248238678,3.07153,3255.7,3255.3,0.772]
[1738248238883,3.07181,3255.4,3255.3,0.772]
[1738248239128,3.07181,3255.4,3254.6,6.57229939]
[1738248239129,3.07201,3255.2,3254.7,0.772]
[1738248239277,3.07181,3255.4,3254.8,3.0]
[1738248239481,3.07192,3255.3,3254.8,0.55]
[1738248239727,3.07204,3255.2,3254.8,0.55]
[1738248240335,3.07181,3255.4,3254.7,3.772]
[1738248240336,3.07194,3255.3,3254.7,6.84446]
[1738248240545,3.07129,3256.0,3255.2,0.55]
[1738248240837,3.07134,3255.9,3255.2,0.55]
[1738248241017,3.0713,3256.0,3255.2,0.55]
[1738248241193,3.07191,3255.3,3255.1,0.7594]
[1738248241394,3.07216,3255.1,3254.7,0.7594]
[1738248241657,3.07221,3255.0,3254.7,3.7594]
[1738248241839,3.07229,3254.9,3254.7,0.7594]
[1738248242340,3.07238,3254.8,3254.3,0.8211]
[1738248242551,3.84161,3255.6,3254.3,0.8211]
[1738248242836,3.84161,3255.6,3254.3,3.89392]
[1738248242837,3.0723,3254.9,3254.3,3.89392]
[1738248243007,3.0724,3254.8,3254.3,0.8211]
[1738248243388,3.0723,3254.9,3254.3,3.89392]
[1738248243609,3.07239,3254.8,3254.4,0.55]
[1738248244337,3.07255,3254.7,3254.4,0.55]
[1738248244496,0.99344725,3255.5,3254.4,0.55]
[1738248244497,3.07222,3255.0,3254.4,0.55]
[1738248244694,3.07163,3255.6,3254.6,4.04973939]
[1738248244895,0.16715,3256.9,3255.5,3.07171]
[1738248244896,3.07112,3256.2,3255.5,3.07171]
[1738248245105,3.07112,3256.2,3255.2,0.55]
[1738248245106,0.7697,3256.4,3255.2,0.03071413]
[1738248245332,0.7697,3256.4,3255.1,0.7824]
[1738248245333,3.07164,3255.6,3255.1,0.7824]
[1738248245534,3.07146,3255.8,3255.2,0.55]
[1738248245839,3.07156,3255.7,3255.2,0.55]
[1738248246540,3.07173,3255.5,3255.2,0.55]
[1738248246736,3.07173,3255.5,3254.5,0.7838]
[1738248246737,3.07245,3254.8,3254.5,0.7838]
[1738248246922,3.07222,3255.0,3254.5,0.7838]
[1738248247122,3.07229,3254.9,3254.5,0.7838]
[1738248247321,1.418629,3255.5,3254.5,0.7838]
[1738248247322,4.490429,3255.5,3254.5,0.7838]
[1738248247624,3.07257,3254.6,3254.5,0.7838]
[1738248248539,0.8085,3256.8,3255.2,0.8149]
[1738248248848,3.07098,3256.3,3255.4,0.55]
[1738248249141,3.07107,3256.2,3255.7,0.55]
[1738248249341,3.07126,3256.0,3255.7,0.55]
[1738248249644,3.07126,3256.0,3255.5,0.55]
[1738248249846,3.07126,3256.0,3255.5,3.62172]
[1738248249997,3.07126,3256.0,3255.5,0.55]
[1738248250528,3.685503,3256.0,3255.5,0.55]
[1738248250732,3.07108,3256.2,3255.7,0.55]
[1738248251102,3.07116,3256.1,3255.7,0.55]
[1738248251301,3.07116,3256.1,3255.9,0.55]
[1738248251997,3.07108,3256.2,3255.9,0.55]
[1738248252146,0.44753894,3256.7,3256.1,0.55]
[1738248252341,3.07094,3256.4,3256.1,0.55]
[1738248252547,3.07106,3256.2,3255.8,1.90582125]
[1738248252857,3.07106,3256.2,3256.0,0.74181131]
[1738248253062,3.07087,3256.4,3256.0,0.74181131]
[1738248253262,3.07097,3256.3,3256.0,0.74181131]
[1738248253585,3.07072,3256.6,3256.0,0.74181131]
[1738248253789,0.307072,3256.5,3256.1,0.55]
[1738248253947,3.07075,3256.6,3256.3,0.47619283]
[1738248254694,3.07087,3256.4,3256.3,0.47619283]
[1738248255542,3.07087,3256.4,3256.1,1.21766507]
[1738248255897,3.23761,3256.9,3256.3,0.781]
[1738248256197,3.07059,3256.7,3256.3,1.99866507]
[1738248256399,3.07087,3256.4,3256.3,1.99866507]
[1738248256701,3.07087,3256.4,3256.3,1.21766507]
[1738248256858,3.07068,3256.6,3256.3,1.21766507]
[1738248256859,3.07072,3256.6,3256.3,1.21766507]
[1738248257062,3.640271,3256.9,3256.4,0.55]
[1738248257890,3.640271,3256.9,3256.4,1.1455462]
[1738248258405,3.640271,3256.9,3256.5,0.74181131]
[1738248258611,3.07065,3256.7,3256.5,1.77311107]
[1738248258907,3.07068,3256.6,3256.5,1.77311107]
[1738248260280,3.07068,3256.6,3256.5,0.74181131]
[1738248261265,3.07065,3256.7,3256.5,0.74181131]
[1738248261625,3.07065,3256.7,3256.5,0.97117167]
[1738248261626,3.07068,3256.6,3256.5,0.97117167]
[1738248262268,3.86071766,3256.6,3256.5,0.97117167]
[1738248264267,0.16715,3256.9,3256.5,0.97117167]
[1738248264807,3.23759,3256.9,3256.5,0.74181131]
[1738248265609,3.23759,3256.9,3256.6,0.74181131]
[1738248265610,0.16715,3256.9,3256.6,0.74181131]
[1738248265908,3.23755,3256.9,3256.6,0.74181131]
[1738248266123,3.23755,3256.9,3256.6,0.97114498]
[1738248266407,3.07059,3256.7,3256.6,0.97114498]
[1738248266580,3.07051,3256.8,3256.6,0.97114498]
[1738248266995,3.07059,3256.7,3256.6,0.97114498]
[1738248267372,3.07059,3256.7,3256.6,0.22933367]
[1738248267806,3.07086,3256.5,3256.0,0.55]
[1738248268117,3.07086,3256.5,3255.9,3.0713]
[1738248268118,3.07108,3256.2,3255.7,3.85486]
[1738248268269,3.07108,3256.2,3255.7,0.7834]
[1738248268469,3.071,3256.3,3255.8,0.55]
[1738248268670,3.071,3256.3,3255.8,3.62143]
[1738248268905,3.377896,3256.5,3255.8,6.69278]
[1738248269098,3.377896,3256.5,3255.8,3.62135]
[1738248269304,3.07088,3256.4,3255.8,3.62135]
[1738248269617,3.07099,3256.3,3255.9,0.97454669]
[1738248271516,3.07115,3256.1,3256.0,0.97454669]
[1738248272919,3.83975,3256.1,3256.0,0.51593648]
[1738248273120,3.83975,3256.1,3256.0,0.28663138]
[1738248273824,3.07115,3256.1,3256.0,0.28663138]
[1738248274173,3.07113,3256.2,3256.0,0.28663138]
[1738248274685,3.377896,3256.5,3256.0,0.74524159]
[1738248274885,3.07113,3256.2,3256.0,0.74524159]
[1738248275418,3.07115,3256.1,3256.0,0.74524159]
[1738248276475,3.685363,3256.1,3256.0,0.74524159]
[1738248276668,3.685363,3256.1,3256.0,0.28663138]
[1738248277274,3.07108,3256.2,3256.0,0.28663138]
[1738248277481,3.07115,3256.1,3256.0,0.28663138]
[1738248280721,3.07142,3255.9,3255.6,0.68996127]
[1738248281823,3.07115,3256.1,3255.6,0.68996127]
[1738248282021,3.07098,3256.3,3255.7,3.85148974]
[1738248282392,0.16715,3256.9,3256.0,3.07125]
[1738248282592,3.0708,3256.5,3255.9,3.62132]
[1738248282790,3.07095,3256.4,3255.9,0.55]
[1738248283022,3.07099,3256.3,3255.9,0.55]
[1738248283225,3.0708,3256.5,3255.9,0.55]
[1738248283537,3.07091,3256.4,3255.9,3.62131]
[1738248283736,3.07091,3256.4,3256.1,0.55]
[1738248283899,3.07091,3256.4,3256.0,0.22997974]
[1738248284234,3.07112,3256.2,3256.0,0.22997974]
[1738248284937,3.07115,3256.1,3256.0,0.22997974]
[1738248285462,3.07131,3256.0,3255.6,0.55]
[1738248285659,3.685377,3256.1,3255.6,0.55]
[1738248285660,3.07135,3255.9,3255.6,0.55]
[1738248286242,3.07135,3255.9,3255.7,0.28743119]
[1738248286558,0.7663,3256.6,3255.8,3.62138]
[1738248286559,3.07095,3256.4,3255.8,3.62138]
[1738248286768,3.761751,3256.4,3255.8,0.55]
[1738248287055,3.07109,3256.2,3255.8,0.77993934]
[1738248287811,3.07109,3256.2,3255.9,0.74730603]